[Event "1st Gujarat GM Open 2018"]
[Site "Ahmedabad"]
[Date "2018.10.10"]
[Round "8"]
[White "Harsha Bharathakoti"]
[Black "Rahul Srivatshav P"]
[Result "1-0"]
[ECO "A45"]
[WhiteElo "2492"]
[BlackElo "2395"]
[Annotator "RC"]
[PlyCount "137"]
[EventDate "2018.10.05"]
[EventType "swiss"]
[EventCountry "IND"]
[SourceTitle "playchess.com"]
[Source "ChessBase"]
[SourceQuality "1"]
[TimeControl "5400+30"]

1. d4 {[%emt 0:00:00]} Nf6 {[%emt 0:00:00]} 2. Bg5 {[%emt 0:01:49]} g6 {[%emt 0:01:52]} 3. Bxf6 {[%emt 0:01:41]} exf6 {[%emt 0:01:17]} 4. e3 {[%emt 0:00:05]} d5 {[%emt 0:00:49]} 5. c4 {[%emt 0:00:19]} dxc4 {[%emt 0:02:30]} 6. Bxc4 {[%emt 0:00:19]} Bd6 {[%emt 0:00:20]} 7. Nc3 {[%emt 0:01:45]} c6 {[%emt 0:02:11]} 8. Nf3 {[%emt 0:02:32]} O-O {[%emt 0:05:26]} 9. O-O {[%emt 0:01:18]} Nd7 {[%emt 0:02:35]} 10. Bb3 {[%emt 0:16:24]} f5 {[%emt 0:10:43]} 11. h3 {[%emt 0:21:49]} Qe7 {[%emt 0:04:37]} 12. Re1 {[%emt 0:02:21]} Nf6 {[%emt 0:00:49]} 13. Nd2 {[%emt 0:01:49]} Bd7 {[%emt 0:19:30]} 14. Qf3 {[%emt 0:16:47]} Rae8 {[%emt 0:01:39]} 15. e4 {[%emt 0:00:34]} fxe4 {[%emt 0:02:05]} 16. Ndxe4 {[%emt 0:05:43]} Nxe4 {[%emt 0:07:29]} 17. Rxe4 {[%emt 0:01:58]} Qd8 {[%emt 0:00:58]} 18. Rxe8 {[%emt 0:01:40]} Qxe8 {[%emt 0:03:45]} 19. Ne4 {[%emt 0:03:09]} Qe7 {[%emt 0:03:10]} 20. d5 {[%emt 0:08:04]} cxd5 {[%emt 0:13:30]} 21. Nxd6 {[%emt 0:01:31]} Qxd6 {[%emt 0:01:07]} 22. Bxd5 {[%emt 0:01:16]} Bc6 {[%emt 0:02:15]} 23. Bxc6 {[%emt 0:00:05]} Qxc6 {[%emt 0:00:22]} 24. Qxc6 {[%emt 0:00:37]} bxc6 {[%emt 0:00:06]} 25. Rc1 {[%emt 0:01:02]} Rd8 {[%emt 0:01:23]} 26. Rc2 {[%emt 0:04:07]} Kf8 {[%emt 0:00:16]} 27. g4 {[%emt 0:00:08]} Rd6 {[%emt 0:00:11]} 28. Kg2 {[%emt 0:00:35]} Ke7 {[%emt 0:00:49]} 29. Rc5 {[%emt 0:00:35]} h6 {[%emt 0:00:47]} 30. Ra5 {[%emt 0:00:35]} Rd7 {[%emt 0:00:04]} 31. h4 {[%emt 0:00:03]} Kd6 {[%emt 0:03:59]} 32. h5 {[%emt 0:01:40]} Ke6 {[%emt 0:00:57]} 33. Kg3 {[%emt 0:01:25]} gxh5 {[%emt 0:01:42]} 34. Rxh5 {[%emt 0:00:41]} Rd2 {[%emt 0:03:30]} 35. Rxh6+ {[%emt 0:00:04]} Kd7 {[%emt 0:00:02]} 36. Rf6 {[%emt 0:00:16]} Ke8 {[%emt 0:00:03]} 37. Rxc6 {[%emt 0:00:13]} Rxb2 {[%emt 0:00:03]} 38. Ra6 {[%emt 0:00:05]} Rb7 {[%emt 0:00:07]} 39. g5 {[%emt 0:00:40]} Kf8 {[%emt 0:02:10]} 40. f4 {[%emt 0:00:53]} Kg7 {[%emt 0:00:45]} 41. Kg4 {[%emt 0:00:15]} Rc7 {[%emt 0:00:05]} 42. a4 {[%emt 0:00:28]} Rd7 {[%emt 0:00:14]} 43. a5 {[%emt 0:00:53]} Rc7 {[%emt 0:01:01]} 44. Kf5 {[%emt 0:02:12]} Rb7 {[%emt 0:00:40]} 45. Kg4 {[%emt 0:00:46]} Rc7 {[%emt 0:00:05]} 46. Rf6 {[%emt 0:00:09]} Rc5 {[%emt 0:00:22]} 47. a6 {[%emt 0:00:18]} Ra5 {[%emt 0:00:20]} 48. Kf3 {[%emt 0:00:02]} Ra4 {[%emt 0:00:06]} 49. Ke3 {[%emt 0:00:08]} Kg8 {[%emt 0:00:22]} 50. Kd3 {[%emt 0:00:03]} Kg7 {[%emt 0:00:09]} 51. Ke3 {[%emt 0:01:10]} Kg8 {[%emt 0:00:05]} 52. Kf3 {[%emt 0:01:29]} Kg7 {[%emt 0:00:06]} 53. Kg4 {[%emt 0:00:26]} Ra5 {[%emt 0:00:11]} 54. Rc6 {[%emt 0:00:23]} Kg8 {[%emt 0:02:43]} 55. g6 {[%emt 0:00:36]} fxg6 {[%emt 0:00:35]} 56. Rxg6+ {[%emt 0:00:17]} Kf7 {[%emt 0:01:16]} 57. Rh6 {[%emt 0:00:24]} Kg7 {[%emt 0:01:30]} 58. Rc6 {[%emt 0:00:11]} Kf7 {[%emt 0:01:19]} 59. Rc7+ {[%emt 0:00:04]} Kg6 {[%emt 0:00:33]} 60. Rxa7 {[%emt 0:00:03]} Ra1 {[%emt 0:00:34]} 61. Ra8 {[%emt 0:00:22]} Rg1+ {[%emt 0:00:13]} 62. Kf3 {[%emt 0:00:05]} Rf1+ {[%emt 0:00:13]} 63. Ke3 {[%emt 0:00:13]} Re1+ {[%emt 0:00:06]} 64. Kf2 {[%emt 0:00:25]} Ra1 {[%emt 0:00:06]} 65. a7 {[%emt 0:00:22]} Kg7 {[%emt 0:00:08]} 66. f5 {[%emt 0:00:02]} Ra6 {[%emt 0:00:08]} 67. Ke3 {[%emt 0:00:02]} Kh7 {[%emt 0:00:19]} 68. f6 {[%emt 0:00:11]} Rxf6 {[%emt 0:00:11]} 69. Rb8 {[%emt 0:00:05]} 1-0

[Event "1st Gujarat GM Open 2018"]
[Site "Ahmedabad"]
[Date "2018.10.10"]
[Round "8"]
[White "Swayams, Mishra"]
[Black "Surendran N"]
[Result "1-0"]
[ECO "E21"]
[WhiteElo "2463"]
[BlackElo "2210"]
[Annotator "RC"]
[PlyCount "135"]
[EventDate "2018.10.05"]
[EventType "swiss"]
[EventCountry "IND"]
[SourceTitle "playchess.com"]
[Source "ChessBase"]
[SourceQuality "1"]
[TimeControl "5400+30"]

1. d4 {[%emt 0:05:15]} Nf6 {[%emt 0:00:00]} 2. c4 {[%emt 0:00:12]} e6 {[%emt 0:00:00]} 3. Nc3 {[%emt 0:00:01]} Bb4 {[%emt 0:00:00]} 4. Nf3 {[%emt 0:00:04]} d5 {[%emt 0:00:09]} 5. Qa4+ {[%emt 0:00:10]} Nc6 {[%emt 0:00:08]} 6. e3 {[%emt 0:00:04]} O-O {[%emt 0:00:13]} 7. Bd2 {[%emt 0:01:19]} a6 {[%emt 0:02:40]} 8. Qc2 {[%emt 0:00:55]} dxc4 {[%emt 0:01:21]} 9. Bxc4 {[%emt 0:00:07]} Bd6 {[%emt 0:00:32]} 10. O-O {[%emt 0:00:56]} Re8 {[%emt 0:02:06]} 11. h3 {[%emt 0:05:35]} h6 {[%emt 0:03:38]} 12. Rad1 {[%emt 0:14:21]} Qe7 {[%emt 0:17:18]} 13. Ne4 {[%emt 0:22:21]} Nxe4 {[%emt 0:08:28]} 14. Qxe4 {[%emt 0:00:03]} e5 {[%emt 0:23:27]} 15. Bc3 {[%emt 0:05:54]} exd4 {[%emt 0:00:54]} 16. Qxe7 {[%emt 0:00:03]} Nxe7 {[%emt 0:00:15]} 17. Nxd4 {[%emt 0:00:25]} b5 {[%emt 0:03:48]} 18. Bd3 {[%emt 0:02:57]} Nd5 {[%emt 0:01:37]} 19. Ba5 {[%emt 0:03:37]} Bb7 {[%emt 0:07:30]} 20. Rd2 {[%emt 0:03:49]} c5 {[%emt 0:05:15]} 21. Nf3 {[%emt 0:00:51]} Bc7 {[%emt 0:06:27]} 22. Bxc7 {[%emt 0:00:35]} Nxc7 {[%emt 0:00:02]} 23. Rfd1 {[%emt 0:00:35]} g6 {[%emt 0:01:59]} 24. Be2 {[%emt 0:01:14]} Ne6 {[%emt 0:01:17]} 25. Ne5 {[%emt 0:01:19]} Rad8 {[%emt 0:03:52]} 26. Rd7 {[%emt 0:02:47]} Rxd7 {[%emt 0:02:55]} 27. Rxd7 {[%emt 0:00:20]} Nf8 {[%emt 0:00:04]} 28. Rxb7 {[%emt 0:01:09]} Rxe5 {[%emt 0:00:06]} 29. Ra7 {[%emt 0:01:14]} Re6 {[%emt 0:00:42]} 30. a4 {[%emt 0:03:12]} bxa4 {[%emt 0:00:17]} 31. Bxa6 {[%emt 0:02:44]} Re4 {[%emt 0:00:43]} 32. Bb5 {[%emt 0:01:11]} Rb4 {[%emt 0:00:10]} 33. Bxa4 {[%emt 0:02:35]} Rxb2 {[%emt 0:00:42]} 34. Be8 {[%emt 0:00:08]} f6 {[%emt 0:00:17]} 35. Rc7 {[%emt 0:00:50]} Rc2 {[%emt 0:01:40]} 36. Bf7+ {[%emt 0:01:22]} Kh8 {[%emt 0:00:12]} 37. g4 {[%emt 0:02:29]} g5 {[%emt 0:01:30]} 38. Kg2 {[%emt 0:00:57]} Rc1 {[%emt 0:01:46]} 39. Kf3 {[%emt 0:02:50]} c4 {[%emt 0:01:15]} 40. Ke4 {[%emt 0:02:04]} c3 {[%emt 0:03:44]} 41. Kf5 {[%emt 0:00:07]} Rf1 {[%emt 0:00:07]} 42. f4 {[%emt 0:00:06]} gxf4 {[%emt 0:00:06]} 43. exf4 {[%emt 0:00:03]} Rb1 {[%emt 0:01:42]} 44. Kxf6 {[%emt 0:02:53]} Rb6+ {[%emt 0:00:24]} 45. Kf5 {[%emt 0:02:30]} Rb5+ {[%emt 0:00:24]} 46. Ke4 {[%emt 0:00:30]} Rb4+ {[%emt 0:00:10]} 47. Kf3 {[%emt 0:00:43]} Kg7 {[%emt 0:00:14]} 48. Bd5+ {[%emt 0:00:42]} Kh8 {[%emt 0:00:47]} 49. Rxc3 {[%emt 0:01:18]} Ng6 {[%emt 0:00:07]} 50. Be4 {[%emt 0:00:35]} Nf8 {[%emt 0:00:16]} 51. Bf5 {[%emt 0:00:15]} Rb7 {[%emt 0:00:25]} 52. Kg3 {[%emt 0:00:27]} Kg7 {[%emt 0:00:03]} 53. Kh4 {[%emt 0:01:46]} Ra7 {[%emt 0:00:02]} 54. Kh5 {[%emt 0:00:24]} Rb7 {[%emt 0:00:28]} 55. h4 {[%emt 0:00:35]} Ra7 {[%emt 0:00:05]} 56. Rc6 {[%emt 0:01:06]} Rb7 {[%emt 0:00:44]} 57. Rxh6 {[%emt 0:00:41]} Rb4 {[%emt 0:00:06]} 58. Kg5 {[%emt 0:00:20]} Rxf4 {[%emt 0:00:07]} 59. Kxf4 {[%emt 0:00:09]} Kxh6 {[%emt 0:00:03]} 60. h5 {[%emt 0:00:20]} Kg7 {[%emt 0:00:17]} 61. g5 {[%emt 0:00:39]} Kf7 {[%emt 0:00:24]} 62. Ke5 {[%emt 0:01:02]} Kg7 {[%emt 0:00:18]} 63. Kd6 {[%emt 0:00:10]} Kf7 {[%emt 0:00:10]} 64. Bd3 {[%emt 0:00:56]} Kg8 {[%emt 0:00:38]} 65. Ke7 {[%emt 0:00:09]} Kg7 {[%emt 0:00:04]} 66. Bf5 {[%emt 0:00:44]} Kg8 {[%emt 0:00:08]} 67. Kf6 {[%emt 0:00:31]} Kh8 {[%emt 0:00:12]} 68. Kf7 {[%emt 0:00:21]} 1-0

[Event "1st Gujarat GM Open 2018"]
[Site "Ahmedabad"]
[Date "2018.10.10"]
[Round "8"]
[White "Sahoo, Utkal Ranjan"]
[Black "Alan Diviya Raj"]
[Result "1-0"]
[ECO "A29"]
[WhiteElo "2332"]
[BlackElo "2127"]
[Annotator "NA"]
[PlyCount "77"]
[EventDate "2018.10.05"]
[EventType "swiss"]
[EventCountry "IND"]
[SourceTitle "playchess.com"]
[Source "ChessBase"]
[SourceQuality "1"]
[TimeControl "5400+30"]

1. c4 {[%emt 0:00:00]} Nf6 {[%emt 0:00:00]} 2. Nc3 {[%emt 0:00:00]} e5 {[%emt 0:00:27]} 3. Nf3 {[%emt 0:00:37]} Nc6 {[%emt 0:04:43]} 4. g3 {[%emt 0:00:15]} Bc5 {[%emt 0:00:56]} 5. Bg2 {[%emt 0:01:45]} O-O {[%emt 0:00:38]} 6. O-O {[%emt 0:00:19]} d6 {[%emt 0:04:34]} 7. d3 {[%emt 0:03:04]} Be6 {[%emt 0:02:52]} 8. Bg5 {[%emt 0:07:11]} Bb4 {[%emt 0:13:43]} 9. Ne4 {[%emt 0:02:09]} d5 {[%emt 0:01:27]} 10. cxd5 {[%emt 0:05:50]} Bxd5 {[%emt 0:01:15]} 11. Bxf6 {[%emt 0:03:02]} gxf6 {[%emt 0:00:19]} 12. Nh4 {[%emt 0:00:31]} Be6 {[%emt 0:01:21]} 13. Qc1 {[%emt 0:18:43]} Be7 14. Nc5 {[%emt 0:04:56]} Nd4 {[%emt 0:08:13]} 15. Re1 {[%emt 0:00:18]} Bxc5 {[%emt 0:07:50]} 16. Qxc5 {[%emt 0:00:07]} c6 {[%emt 0:00:35]} 17. e3 {[%emt 0:17:05]} Nb5 $16 {[%emt 0:24:22]} 18. a4 {[%emt 0:10:19]} Qd6 {[%emt 0:01:28]} 19. Qc2 {[%emt 0:01:03]} Nc7 {[%emt 0:01:02]} 20. Be4 {[%emt 0:02:01]} Bd5 {[%emt 0:09:08]} 21. Nf5 {[%emt 0:09:51]} Qe6 {[%emt 0:00:34]} 22. Qe2 {[%emt 0:04:10]} Kh8 {[%emt 0:00:29]} 23. Qh5 {[%emt 0:00:11]} Bxe4 {[%emt 0:00:48]} 24. dxe4 {[%emt 0:00:02]} Ne8 {[%emt 0:02:53]} 25. Qh6 {[%emt 0:03:14]} Rg8 {[%emt 0:00:14]} 26. Rad1 {[%emt 0:00:57]} Ng7 {[%emt 0:01:25]} 27. Nd6 {[%emt 0:00:58]} b6 {[%emt 0:06:51]} 28. Rd2 {[%emt 0:00:45]} Ne8 {[%emt 0:04:13]} 29. Red1 {[%emt 0:00:37]} Ng7 {[%emt 0:01:01]} 30. Nb7 {[%emt 0:02:25]} Rab8 {[%emt 0:00:30]} 31. Nd8 {[%emt 0:00:48]} Qe7 {[%emt 0:00:41]} 32. Nxc6 {[%emt 0:00:24]} Qb7 {[%emt 0:00:53]} 33. Nxb8 {[%emt 0:00:09]} Qxb8 {[%emt 0:00:17]} 34. Qxf6 {[%emt 0:00:06]} Qc8 {[%emt 0:00:18]} 35. Rd8 {[%emt 0:00:16]} Qe6 {[%emt 0:00:25]} 36. Rxg8+ {[%emt 0:00:06]} Kxg8 {[%emt 0:00:03]} 37. Rd8+ {[%emt 0:00:05]} Ne8 {[%emt 0:00:04]} 38. Qxe6 {[%emt 0:00:05]} fxe6 {[%emt 0:00:09]} 39. Rxe8+ 1-0

[Event "1st Gujarat GM Open 2018"]
[Site "Ahmedabad"]
[Date "2018.10.10"]
[Round "8"]
[White "Mohammad Minhaz Uddin"]
[Black "Prasannaa.s"]
[Result "1-0"]
[ECO "C44"]
[WhiteElo "2328"]
[BlackElo "2124"]
[Annotator "NA"]
[PlyCount "125"]
[EventDate "2018.10.05"]
[EventType "swiss"]
[EventCountry "IND"]
[SourceTitle "playchess.com"]
[Source "ChessBase"]
[SourceQuality "1"]
[TimeControl "5400+30"]

1. e4 {[%emt 0:00:00]} e5 {[%emt 0:00:00]} 2. Nf3 {[%emt 0:00:00]} Nc6 {[%emt 0:00:00]} 3. d4 {[%emt 0:00:00]} exd4 {[%emt 0:00:00]} 4. Nxd4 {[%emt 0:00:00]} Nf6 {[%emt 0:00:00]} 5. Nc3 {[%emt 0:00:00]} Bb4 {[%emt 0:00:00]} 6. Nxc6 {[%emt 0:00:01]} bxc6 {[%emt 0:00:00]} 7. Bd3 {[%emt 0:00:05]} O-O {[%emt 0:00:04]} 8. O-O {[%emt 0:00:04]} d5 {[%emt 0:00:04]} 9. exd5 {[%emt 0:00:27]} cxd5 {[%emt 0:00:01]} 10. Bg5 {[%emt 0:00:11]} c6 {[%emt 0:00:06]} 11. Qf3 {[%emt 0:00:10]} h6 {[%emt 0:00:21]} 12. Bxf6 {[%emt 0:00:09]} Qxf6 {[%emt 0:00:02]} 13. Qxf6 {[%emt 0:00:02]} gxf6 {[%emt 0:00:09]} 14. Ne2 {[%emt 0:00:51]} Rb8 {[%emt 0:00:06]} 15. Ng3 {[%emt 0:09:34] C47: Scotch Four Knights and Four Knights with 4 g3} (15. Rad1 Bc5 16. b3 Bg4 17. h3 Bxe2 18. Bxe2 Rfe8 19. Bd3 Bb4 20. g4 d4 21. Kg2 Re5 22. Kf3 Rbe8 {½-½ (31) Zhou,W (2606)-Wei,Y (2727) China 2017}) 15... Ba5 {[%emt 0:00:36]} 16. Rab1 {[%emt 0:00:30]} Re8 {[%emt 0:00:07]} 17. Nh5 {[%emt 0:16:37]} Bd8 {[%emt 0:01:51]} 18. h3 $146 {[%emt 0:05:19]} ({Predecessor:} 18. Rfe1 Rxe1+ 19. Rxe1 Kf8 20. b3 Bg4 21. Ng3 Ba5 22. Rb1 Be6 {½-½ (75) Vogelmann,P (2320)-Tamm,U (2225) Germany 2000}) 18... Re5 {[%emt 0:05:16]} 19. g4 {[%emt 0:05:05]} Kf8 {[%emt 0:05:46]} 20. b3 {[%emt 0:06:45]} Be6 {[%emt 0:03:03]} 21. Kg2 {[%emt 0:06:00]} Ke7 {[%emt 0:05:27]} 22. f4 {[%emt 0:03:55]} Re3 {[%emt 0:00:11]} 23. Rbe1 {[%emt 0:00:03]} Rxe1 {[%emt 0:00:29]} 24. Rxe1 {[%emt 0:00:02]} Kd6 {[%emt 0:00:11]} 25. Re2 {[%emt 0:04:16]} a5 {[%emt 0:02:32]} 26. Ng7 {[%emt 0:01:06]} Rb7 {[%emt 0:05:57]} 27. Bf5 {[%emt 0:02:58]} Re7 {[%emt 0:00:09]} 28. Kg3 {[%emt 0:00:22]} Bc7 {[%emt 0:03:33]} 29. Nh5 {[%emt 0:02:56]} Bxf5 {[%emt 0:04:28]} 30. Rxe7 {[%emt 0:00:03]} Kxe7 {[%emt 0:00:55]} 31. gxf5 {[%emt 0:00:03]} Bd8 {[%emt 0:01:51] [#]} 32. Kg4 $1 {[%emt 0:01:25]} Kd6 {[%emt 0:00:06] [#]} 33. Ng7 {[%emt 0:03:28]} (33. Ng3 $1 $16) 33... Kc5 {[%emt 0:00:38]} 34. Kh5 {[%emt 0:12:10]} Kd4 {[%emt 0:02:57]} 35. Kxh6 {[%emt 0:00:42]} Kc3 {[%emt 0:01:13]} 36. Ne8 {[%emt 0:00:26]} Kxc2 $11 {[%emt 0:02:48]} 37. Kg7 {[%emt 0:00:17]} d4 {[%emt 0:10:13]} 38. Nd6 {[%emt 0:04:37]} Bc7 {[%emt 0:00:11]} 39. Ne4 {[%emt 0:02:25]} Kd3 {[%emt 0:08:21]} 40. Nc5+ {[%emt 0:00:21]} Ke3 {[%emt 0:00:13]} 41. h4 {[%emt 0:05:42]} Bd6 {[%emt 0:00:59]} 42. Na4 {[%emt 0:00:02]} Kxf4 {[%emt 0:02:03]} 43. h5 {[%emt 0:02:39]} Kxf5 {[%emt 0:03:14]} 44. h6 {[%emt 0:02:26]} Kg5 {[%emt 0:00:26]} 45. Nb2 {[%emt 0:01:16]} f5 {[%emt 0:01:24]} 46. Nc4 {[%emt 0:00:15]} Be7 {[%emt 0:05:35]} 47. Kxf7 {[%emt 0:00:03]} Bf6 {[%emt 0:00:17]} 48. Nxa5 {[%emt 0:01:32]} d3 {[%emt 0:01:40]} 49. Nc4 {[%emt 0:00:39]} Bc3 {[%emt 0:00:14]} 50. h7 {[%emt 0:00:03]} f4 {[%emt 0:00:41]} 51. Nd2 {[%emt 0:01:18]} Kg4 {[%emt 0:01:27]} 52. Ne4 {[%emt 0:02:32]} Bd4 {[%emt 0:02:07]} 53. Nf2+ {[%emt 0:00:14]} Kf5 {[%emt 0:00:03]} 54. Nxd3 {[%emt 0:00:11]} f3 {[%emt 0:00:01]} 55. a4 {[%emt 0:01:03]} Ke4 {[%emt 0:00:16]} 56. Nf2+ {[%emt 0:00:16]} Kd5 {[%emt 0:03:06]} 57. Ke7 {[%emt 0:00:07]} Kc5 {[%emt 0:00:24]} 58. Nd3+ {[%emt 0:00:45]} Kb6 {[%emt 0:00:16]} 59. Kd6 {[%emt 0:00:21]} c5 {[%emt 0:01:32]} 60. Kd5 {[%emt 0:00:33]} Ka5 {[%emt 0:00:02]} 61. b4+ {[%emt 0:00:51]} Kxa4 {[%emt 0:00:43]} 62. bxc5 {[%emt 0:00:02]} Bg7 {[%emt 0:00:53]} 63. c6 {[%emt 0:00:08]} 1-0

[Event "1st Gujarat GM Open 2018"]
[Site "Ahmedabad"]
[Date "2018.10.10"]
[Round "8"]
[White "Aaryan Varshney"]
[Black "Sudhanshu Ranjan"]
[Result "1/2-1/2"]
[ECO "D59"]
[WhiteElo "2286"]
[BlackElo "2060"]
[Annotator "NA"]
[PlyCount "133"]
[EventDate "2018.10.05"]
[EventType "swiss"]
[EventCountry "IND"]
[SourceTitle "playchess.com"]
[Source "ChessBase"]
[SourceQuality "1"]
[TimeControl "5400+30"]

1. d4 {[%emt 0:02:44]} Nf6 {[%emt 0:00:00]} 2. Nf3 {[%emt 0:00:05]} e6 {[%emt 0:00:00]} 3. c4 {[%emt 0:00:06]} d5 {[%emt 0:00:00]} 4. Nc3 {[%emt 0:00:08]} Be7 {[%emt 0:00:00]} 5. Bg5 {[%emt 0:00:05]} h6 {[%emt 0:00:00]} 6. Bh4 {[%emt 0:00:04]} O-O {[%emt 0:00:03]} 7. e3 {[%emt 0:00:01]} b6 {[%emt 0:00:46]} 8. cxd5 {[%emt 0:00:38]} Nxd5 {[%emt 0:00:36]} 9. Bxe7 {[%emt 0:00:07]} Qxe7 {[%emt 0:00:17]} 10. Nxd5 {[%emt 0:00:07]} exd5 {[%emt 0:00:02]} 11. Rc1 {[%emt 0:00:00]} c6 {[%emt 0:01:23]} 12. Bd3 {[%emt 0:00:20]} Bb7 {[%emt 0:02:29]} 13. O-O {[%emt 0:00:09]} Nd7 {[%emt 0:00:55]} 14. Qe2 {[%emt 0:04:55] D53: Queen's Gambit Declined: 4 Bg5 Be7: Early deviations} Nf6 {[%emt 0:05:46]} (14... a6 15. e4 dxe4 16. Qxe4 Qxe4 17. Bxe4 Rac8 18. Nd2 Nf6 19. Bf3 Rfd8 20. Nc4 Rxd4 21. Nxb6 Rb8 {1-0 (36) Fressinet,L (2664)-Stupak,K (2561) Baku 2016}) 15. Rc2 $146 {[%emt 0:03:24]} ({Predecessor:} 15. Ne5 c5 16. Nf3 Rfc8 17. dxc5 Rxc5 18. Rxc5 Qxc5 19. Qc2 Nd7 20. Rc1 Rc8 21. Qxc5 Rxc5 22. Rxc5 Nxc5 {0-1 (40) Tran Thi Thu,T-Vu T Thuy,H Hue 2004}) 15... Rfc8 {[%emt 0:10:14]} 16. Rfc1 {[%emt 0:02:43]} Rc7 {[%emt 0:00:42]} 17. Ne5 {[%emt 0:03:25]} c5 {[%emt 0:10:23]} 18. b3 {[%emt 0:00:12]} a5 {[%emt 0:01:44]} 19. a4 {[%emt 0:00:26]} Bc8 {[%emt 0:03:02]} 20. h3 {[%emt 0:10:33]} Be6 {[%emt 0:04:45]} 21. f3 {[%emt 0:11:51]} Rac8 {[%emt 0:07:46]} 22. Ba6 {[%emt 0:00:52]} Ra8 {[%emt 0:03:10]} 23. g4 {[%emt 0:03:50]} Nd7 {[%emt 0:05:13]} 24. f4 {[%emt 0:03:02]} Nxe5 {[%emt 0:01:39]} 25. dxe5 {[%emt 0:01:51]} Qh4 {[%emt 0:03:40]} 26. Kg2 {[%emt 0:00:17]} f5 {[%emt 0:05:59]} 27. exf6 {[%emt 0:02:04]} gxf6 {[%emt 0:07:09]} 28. Bd3 $15 {[%emt 0:02:24]} (28. Qb5 $5 {[%cal Rb5b6]} Re7 29. Qxb6 $15) 28... h5 {[%emt 0:06:21]} 29. f5 {[%emt 0:02:30]} Bf7 {[%emt 0:02:10]} 30. Qf3 {[%emt 0:03:05]} Kg7 {[%emt 0:02:43]} 31. Qg3 {[%emt 0:01:32]} Qxg3+ {[%emt 0:00:34]} 32. Kxg3 {[%emt 0:00:01]} Re7 {[%emt 0:00:25]} 33. Re2 {[%emt 0:01:08]} Rae8 {[%emt 0:00:27]} 34. Kf3 {[%emt 0:02:42]} hxg4+ {[%emt 0:00:23]} 35. hxg4 {[%emt 0:00:02]} Rh8 {[%emt 0:00:53]} 36. Kg3 {[%emt 0:00:35]} Rd8 {[%emt 0:02:50]} 37. Kf4 {[%emt 0:01:32]} Rh8 {[%emt 0:01:47]} 38. Kg3 {[%emt 0:03:39]} Ree8 {[%emt 0:00:19]} 39. Rce1 {[%emt 0:01:54]} Kh6 {[%emt 0:00:44]} 40. Kf4 {[%emt 0:02:36]} Kg7 {[%emt 0:00:05]} 41. Kg3 {[%emt 0:00:36]} Re5 {[%emt 0:01:14]} 42. Bc2 {[%emt 0:01:11]} Kf8 {[%emt 0:03:29]} 43. Rh2 {[%emt 0:02:30]} Rxh2 {[%emt 0:01:11]} 44. Kxh2 {[%emt 0:00:01]} d4 {[%emt 0:00:34]} 45. e4 {[%emt 0:00:07]} d3 {[%emt 0:01:27]} 46. Bxd3 {[%emt 0:00:16]} Bxb3 {[%emt 0:00:02]} 47. Kg3 {[%emt 0:00:23]} c4 {[%emt 0:00:22]} 48. Bf1 {[%emt 0:02:02]} b5 {[%emt 0:00:13]} 49. axb5 {[%emt 0:00:47]} a4 {[%emt 0:00:54]} 50. Ra1 {[%emt 0:03:04]} Rxe4 {[%emt 0:01:26]} 51. Kf3 {[%emt 0:04:41]} Re5 {[%emt 0:01:10]} 52. b6 {[%emt 0:06:06]} Rb5 {[%emt 0:00:01]} 53. Bxc4 {[%emt 0:00:18]} Bxc4 {[%emt 0:00:01]} 54. Rxa4 {[%emt 0:00:02]} Bb3 {[%emt 0:00:32]} 55. Rd4 {[%emt 0:03:07]} Kg7 {[%emt 0:00:11]} 56. g5 {[%emt 0:03:53]} Rxf5+ {[%emt 0:02:51]} 57. Ke3 {[%emt 0:00:08]} fxg5 {[%emt 0:01:06]} 58. Rb4 {[%emt 0:01:12]} Bd5 {[%emt 0:00:19]} 59. b7 {[%emt 0:00:07]} Bxb7 {[%emt 0:00:11]} 60. Rxb7+ {[%emt 0:00:03]} Kg6 61. Rb1 {[%emt 0:05:53]} g4 {[%emt 0:00:18]} 62. Ke2 {[%emt 0:00:27]} Kg5 {[%emt 0:02:39]} 63. Rf1 {[%emt 0:00:08]} Ra5 {[%emt 0:00:29]} 64. Kf2 {[%emt 0:00:07]} Ra3 {[%emt 0:00:37]} 65. Kg2 {[%emt 0:00:13]} Kh4 {[%emt 0:00:12]} 66. Rh1+ {[%emt 0:00:07]} Kg5 {[%emt 0:00:01]} 67. Rf1 {[%emt 0:00:06]} 1/2-1/2

[Event "1st Gujarat GM Open 2018"]
[Site "Ahmedabad"]
[Date "2018.10.10"]
[Round "8"]
[White "Ritviz, Parab"]
[Black "Nikhil Magizhnan"]
[Result "1-0"]
[ECO "B13"]
[WhiteElo "2252"]
[BlackElo "2056"]
[Annotator "NA"]
[PlyCount "119"]
[EventDate "2018.10.05"]
[EventType "swiss"]
[EventCountry "IND"]
[SourceTitle "playchess.com"]
[Source "ChessBase"]
[SourceQuality "1"]
[TimeControl "5400+30"]

1. e4 {[%emt 0:00:00]} c6 {[%emt 0:00:00]} 2. d4 {[%emt 0:01:13]} d5 {[%emt 0:00:03]} 3. exd5 {[%emt 0:01:55]} cxd5 {[%emt 0:00:30]} 4. Bd3 {[%emt 0:00:14]} e6 {[%emt 0:00:20]} 5. Nf3 {[%emt 0:02:07]} Be7 {[%emt 0:00:11]} 6. c3 {[%emt 0:03:14]} Nf6 {[%emt 0:01:29]} 7. Bf4 {[%emt 0:00:17]} O-O {[%emt 0:00:35]} 8. Nbd2 {[%emt 0:00:13]} Nc6 {[%emt 0:01:05]} 9. O-O {[%emt 0:04:10]} Nh5 {[%emt 0:08:58]} 10. Be3 {[%emt 0:05:03]} Nf6 {[%emt 0:08:06]} 11. Re1 {[%emt 0:10:11]} Qc7 {[%emt 0:06:13]} 12. Bg5 {[%emt 0:05:28]} h6 {[%emt 0:00:23]} 13. Bh4 {[%emt 0:00:09]} Nd7 {[%emt 0:03:05]} 14. Bxe7 {[%emt 0:06:02]} Nxe7 {[%emt 0:00:10]} 15. Nf1 {[%emt 0:00:09]} Nc6 {[%emt 0:07:18]} 16. Rc1 {[%emt 0:03:25]} Nf6 {[%emt 0:08:00]} 17. Ne3 {[%emt 0:15:15]} Rd8 {[%emt 0:05:20]} 18. b4 {[%emt 0:01:41]} a6 {[%emt 0:03:42]} 19. a4 {[%emt 0:00:40]} Nd7 {[%emt 0:14:39]} 20. h3 {[%emt 0:11:00]} Qb8 {[%emt 0:08:29]} 21. Ng4 {[%emt 0:03:58]} f5 {[%emt 0:03:36]} 22. Ne3 {[%emt 0:03:18]} Nf6 {[%emt 0:09:09]} 23. b5 {[%emt 0:08:38]} axb5 {[%emt 0:00:15]} 24. axb5 {[%emt 0:00:02]} Na5 {[%emt 0:02:00]} 25. g4 {[%emt 0:00:22]} Rf8 {[%emt 0:02:34]} 26. Ne5 {[%emt 0:00:46]} f4 {[%emt 0:01:29]} 27. Ng2 {[%emt 0:00:34]} g5 {[%emt 0:00:05]} 28. h4 {[%emt 0:01:25]} Kg7 {[%emt 0:01:00]} 29. Ng6 {[%emt 0:06:59]} Rf7 {[%emt 0:00:26]} 30. Ne5 {[%emt 0:02:09]} Rf8 {[%emt 0:00:06]} 31. f3 {[%emt 0:01:58]} Nd7 {[%emt 0:01:27]} 32. Bc2 {[%emt 0:00:55]} Rf6 {[%emt 0:01:08]} 33. Qd3 {[%emt 0:01:42]} Nf8 {[%emt 0:00:04]} 34. Kf2 {[%emt 0:00:16]} Nc4 {[%emt 0:00:43]} 35. Nxc4 {[%emt 0:00:33]} dxc4 {[%emt 0:00:04]} 36. Qxc4 {[%emt 0:00:05]} Ng6 {[%emt 0:00:49]} 37. hxg5 {[%emt 0:00:39]} hxg5 {[%emt 0:00:01]} 38. Rh1 {[%emt 0:00:18]} Bd7 {[%emt 0:00:15]} 39. Rh5 {[%emt 0:00:10]} Qc8 {[%emt 0:01:31]} 40. Qxc8 {[%emt 0:00:22]} Rxc8 {[%emt 0:00:02]} 41. Bd3 {[%emt 0:00:54]} Nf8 {[%emt 0:01:08]} 42. Rxg5+ {[%emt 0:00:43]} Kf7 {[%emt 0:00:12]} 43. c4 {[%emt 0:00:14]} Ra8 {[%emt 0:00:01]} 44. Re5 {[%emt 0:00:59]} Ra3 {[%emt 0:00:11]} 45. Be4 {[%emt 0:01:10]} Rh6 {[%emt 0:00:58]} 46. Nxf4 {[%emt 0:00:13]} Ra7 {[%emt 0:00:48]} 47. Kg3 {[%emt 0:00:12]} Kg7 {[%emt 0:00:34]} 48. b6 {[%emt 0:00:45]} Ra6 {[%emt 0:00:05]} 49. c5 {[%emt 0:00:30]} Bc8 {[%emt 0:00:01]} 50. c6 {[%emt 0:00:38]} Rxb6 {[%emt 0:00:14]} 51. cxb7 {[%emt 0:00:05]} Bd7 {[%emt 0:00:06]} 52. Rb1 {[%emt 0:00:22]} Bb5 {[%emt 0:00:25]} 53. Rbxb5 {[%emt 0:00:15]} Rxb5 {[%emt 0:00:03]} 54. Rxb5 {[%emt 0:00:05]} Nd7 {[%emt 0:00:04]} 55. b8=Q Nxb8 {[%emt 0:00:02]} 56. Rxb8 {[%emt 0:00:46]} Kf6 {[%emt 0:00:04]} 57. Nxe6 {[%emt 0:00:40]} Rh1 {[%emt 0:00:11]} 58. Rb6 {[%emt 0:00:33]} Rg1+ {[%emt 0:00:03]} 59. Kf4 {[%emt 0:00:03]} Ke7 {[%emt 0:00:05]} 60. Ke5 {[%emt 0:00:05]} 1-0